bitfinex/quotes_SOLUSD_20250721
["timestamp","ask_amount","ask_price","bid_price","bid_amount"]
[1753087602035,53.00667132,190.65,190.61,0.03]
[1753087603867,8.72134079,190.64,190.61,0.03]
[1753087604065,8.72134079,190.62,190.61,0.03]
[1753087604245,47.74134079,190.62,190.61,0.03]
[1753087604641,73.74134079,190.62,190.61,0.03]
[1753087605656,32.6278,190.62,190.61,0.03]
[1753087605873,85.61518003,190.62,190.61,0.03]
[1753087606657,65.0,190.62,190.61,0.03]
[1753087606832,78.96738003,190.62,190.61,0.03]
[1753087607239,76.19291314,190.62,190.61,0.03]
[1753087608139,76.79291314,190.62,190.61,0.03]
[1753087608434,50.79291314,190.62,190.61,0.03]
[1753087608638,56.73978704,190.62,190.59,0.03]
[1753087608843,31.9468739,190.6,190.59,0.03]
[1753087609076,70.9468739,190.6,190.59,0.03]
[1753087609937,37.19346361,190.6,190.59,0.03]
[1753087610138,76.19346361,190.6,190.59,0.03]
[1753087610768,31.24658971,190.6,190.59,0.03]
[1753087610939,65.0,190.6,190.59,0.03]
[1753087611283,70.9468739,190.6,190.59,0.03]
[1753087612046,65.0,190.6,190.59,0.03]
[1753087612269,37.19346361,190.6,190.59,0.03]
[1753087612564,76.19346361,190.6,190.59,0.03]
[1753087612746,70.24658971,190.6,190.59,0.03]
[1753087612941,76.19346361,190.6,190.59,0.03]
[1753087613368,31.24658971,190.6,190.59,0.03]
[1753087613555,70.9468739,190.6,190.59,0.03]
[1753087614266,76.19346361,190.6,190.59,0.03]
[1753087614642,70.9468739,190.6,190.59,0.03]
[1753087616057,87.73155787,190.6,190.59,0.03]
[1753087617465,55.76468397,190.6,190.59,0.74]
[1753087620163,55.76468397,190.6,190.59,0.03]
[1753087620368,55.76468397,190.6,190.59,0.74]
[1753087621751,55.74468397,190.6,190.59,0.74]
[1753087623951,16.78468397,190.6,190.59,5.98686499]
[1753087624257,55.74468397,190.6,190.59,5.98686499]
[1753087624559,38.24,190.61,190.59,11.93373889]
[1753087624759,0.06,190.64,190.6,6.6568739]
[1753087624968,16.78468397,190.62,190.6,0.71]
[1753087625182,16.78468397,190.62,190.61,0.71]
[1753087625569,16.78468397,190.62,190.61,6.6568739]
[1753087625784,38.96,190.63,190.61,6.6568739]
[1753087625785,38.96,190.63,190.61,11.90318836]
[1753087625981,55.74468397,190.63,190.62,0.71]
[1753087626566,16.78468397,190.62,190.59,0.74]
[1753087626766,55.72468397,190.61,190.6,0.71]
[1753087627582,16.78468397,190.6,190.59,0.03]
[1753087628179,22.73155787,190.6,190.59,0.03]
[1753087628885,5.24583622,190.63,190.59,0.03]
[1753087629188,5.9468739,190.61,190.59,0.03]
[1753087629369,38.92,190.6,190.59,0.03]
[1753087629706,62.31155787,190.6,190.59,0.03]
[1753087629886,67.55814758,190.6,190.59,0.03]
[1753087630674,72.84502148,190.6,190.59,0.03]
[1753087630886,99.50502148,190.6,190.59,0.03]
[1753087631993,16.78468397,190.59,190.57,0.03]
[1753087632286,61.65155787,190.58,190.57,0.03]
[1753087632479,62.31155787,190.58,190.57,0.03]
[1753087633096,16.78468397,190.57,190.56,1e-08]
[1753087633297,23.45155787,190.57,190.56,1e-08]
[1753087633976,28.69897351,190.57,190.56,1e-08]
[1753087634171,7.6695,190.56,190.46,0.35952795]
[1753087634369,16.78468397,190.49,190.45,0.2]
[1753087634699,22.73155787,190.46,190.45,0.88]
[1753087634873,61.65155787,190.46,190.45,0.88]
[1753087635074,61.65155787,190.46,190.45,0.2]
[1753087636673,61.63155787,190.46,190.45,0.2]
[1753087637292,5.9468739,190.46,190.45,0.2]
[1753087637472,44.8468739,190.46,190.45,0.2]
[1753087637894,5.9468739,190.46,190.45,0.2]
[1753087638101,38.9,190.46,190.45,0.2]
[1753087638280,44.8468739,190.46,190.45,0.2]
[1753087638884,26.0,190.49,190.45,0.2]
[1753087639085,38.9,190.48,190.45,0.88]
[1753087639396,5.9468739,190.46,190.45,0.88]
[1753087639577,44.8468739,190.46,190.45,0.2]
[1753087640187,38.9,190.46,190.45,0.88]
[1753087641005,38.9,190.46,190.45,6.13072197]
[1753087641387,38.9,190.46,190.45,0.88]
[1753087641902,38.9,190.46,190.45,0.2]
[1753087642214,44.8468739,190.46,190.45,0.2]
[1753087643826,45.5668739,190.46,190.45,0.2]
[1753087644303,50.81732018,190.46,190.45,0.2]
[1753087644509,58.53392018,190.46,190.45,0.1]
[1753087644692,76.07732018,190.46,190.45,0.1]
[1753087644893,76.69732018,190.46,190.45,0.1]
[1753087645811,26.0,190.43,190.39,0.2]
[1753087646017,63.82343589,190.46,190.39,0.2]
[1753087646018,31.9468739,190.4,190.39,0.2]
[1753087646206,70.8268739,190.4,190.39,0.2]
[1753087646613,5.9468739,190.4,190.39,0.2]
[1753087647132,38.88,190.4,190.39,0.88]
[1753087647829,38.88,190.4,190.39,0.2]
[1753087647830,44.8268739,190.4,190.39,0.2]
[1753087648035,13.12437313,190.49,190.39,0.88]
[1753087648328,26.0,190.46,190.4,0.68]
[1753087648517,5.9468739,190.44,190.4,0.68]
[1753087648824,38.88,190.43,190.4,0.68]
[1753087649125,5.9468739,190.42,190.4,0.68]
[1753087649327,38.88,190.41,190.4,0.68]
[1753087649722,38.88,190.41,190.4,5.93210084]
[1753087650198,38.88,190.41,190.4,5.25210084]
[1753087650396,44.8268739,190.41,190.39,0.2]
[1753087650595,5.9468739,190.4,190.39,0.2]
[1753087651201,44.13182657,190.41,190.39,0.2]
[1753087651395,5.9468739,190.4,190.39,0.2]
[1753087651604,44.8268739,190.4,190.39,0.2]
[1753087651817,38.88,190.4,190.39,0.2]
[1753087652024,5.9468739,190.4,190.39,0.2]
[1753087652199,44.8268739,190.4,190.39,0.2]
[1753087652398,38.88,190.4,190.39,0.2]
[1753087652599,38.88,190.4,190.15,26.30883969]
[1753087652600,1.5701,190.38,190.27,0.35988696]
[1753087652819,1.5701,190.38,190.1,1.5696]
[1753087652820,2.062,190.21,190.17,5.9468739]
[1753087653009,2.062,190.21,190.16,5.239]
[1753087653339,2.062,190.21,190.2,12.2558739]
[1753087653634,2.062,190.21,190.2,17.51349745]
[1753087653844,2.062,190.21,190.2,23.46037135]
[1753087654009,38.86,190.31,190.21,1.6405]
[1753087654331,0.72,190.33,190.23,26.0]
[1753087654332,5.97407172,190.33,190.23,26.0]
[1753087654506,5.9468739,190.32,190.23,26.0]
[1753087654699,5.9468739,190.32,190.26,5.9468739]
[1753087654896,5.9468739,190.32,190.24,5.9468739]
[1753087654897,5.9468739,190.31,190.24,5.9468739]
[1753087655233,5.9468739,190.31,190.25,0.68]
[1753087655431,6.6668739,190.32,190.25,6.6268739]
[1753087655733,38.86,190.34,190.27,5.9468739]
[1753087655734,5.9468739,190.33,190.27,5.9468739]
[1753087655932,44.8068739,190.34,190.27,5.9468739]
[1753087656098,5.9468739,190.33,190.26,5.93596552]
[1753087656299,38.86,190.34,190.26,11.88283942]
[1753087656723,38.86,190.34,190.26,5.93596552]
[1753087656938,44.8068739,190.34,190.27,5.9468739]
[1753087657238,44.8068739,190.34,190.27,0.68]
[1753087657534,5.9468739,190.36,190.31,5.25458462]
[1753087657827,44.8068739,190.37,190.32,0.68]
[1753087658038,6.0068739,190.4,190.33,6.6268739]
[1753087658241,6.0068739,190.4,190.31,5.25458462]
[1753087658242,0.06,190.4,190.35,5.9468739]
[1753087658523,0.06,190.4,190.31,18.39104618]
[1753087658524,0.06,190.4,190.36,6.6268739]
[1753087658738,0.06,190.4,190.36,0.68]
[1753087658909,0.06,190.4,190.37,0.68]
[1753087659514,0.06,190.4,190.38,0.68]
[1753087659910,0.06,190.4,190.39,0.68]
[1753087660926,0.06,190.4,190.39,6.6268739]
[1753087661596,0.06,190.4,190.39,11.8792506]
[1753087661802,0.06,190.4,190.39,5.9323767]
[1753087662019,0.06,190.4,190.39,11.8792506]
[1753087666236,0.06,190.4,190.39,5.9323767]
[1753087666534,0.06,190.4,190.39,11.8792506]
[1753087667634,0.06,190.4,190.39,5.9323767]
[1753087667833,0.06,190.4,190.39,11.8792506]
[1753087669111,0.06,190.4,190.39,5.9323767]
[1753087669312,0.06,190.4,190.37,5.9468739]
[1753087670005,5.9468739,190.38,190.32,5.25430853]
[1753087670211,6.6568739,190.37,190.32,5.25430853]
[1753087670412,5.9468739,190.38,190.32,11.20118243]
[1753087670711,0.06,190.4,190.37,5.9468739]
[1753087670911,0.06,190.4,190.39,5.9468739]
[1753087671125,0.06,190.4,190.39,13.98549005]
[1753087671327,0.06,190.4,190.39,5.9123767]
[1753087671529,0.06,190.4,190.39,14.64549005]
[1753087676136,0.06,190.4,190.39,5.9123767]
[1753087676316,0.06,190.4,190.39,14.64549005]
[1753087676917,0.06,190.4,190.39,5.9123767]
[1753087677137,0.06,190.4,190.39,14.64549005]
[1753087678031,0.06,190.4,190.39,5.9123767]
[1753087678236,0.06,190.4,190.39,14.64549005]
[1753087680433,0.77,190.4,190.33,13.79505474]
[1753087680655,0.77,190.4,190.34,8.73311335]
[1753087680656,9.50311335,190.4,190.34,8.73311335]
[1753087680850,2.2993,190.39,190.24,0.66]
[1753087681059,8.73311335,190.32,190.26,8.73311335]
[1753087681261,0.71,190.34,190.26,8.73311335]
[1753087681451,8.73311335,190.33,190.28,5.25541307]
[1753087681651,0.71,190.34,190.28,14.64852642]
[1753087681652,8.73311335,190.34,190.28,14.64852642]
[1753087681955,9.44311335,190.35,190.29,8.73311335]
[1753087682361,8.73311335,190.34,190.28,13.98852642]
[1753087683446,8.73311335,190.32,190.28,5.25541307]
[1753087683643,8.73311335,190.35,190.29,9.39311335]
[1753087683858,0.71,190.36,190.3,8.73311335]
[1753087684048,8.73311335,190.38,190.33,8.73311335]
[1753087684243,8.73311335,190.39,190.34,0.66]
[1753087684455,8.79311335,190.4,190.34,8.73311335]
[1753087684643,8.79311335,190.4,190.28,18.39394575]
[1753087684644,0.06,190.4,190.38,8.73311335]
[1753087684854,0.06,190.4,190.39,9.39311335]
[1753087685244,0.06,190.4,190.39,0.66]
[1753087685564,0.06,190.4,190.38,5.25265258]
[1753087685776,0.06,190.4,190.38,13.98576593]
[1753087686078,0.06,190.4,190.38,14.64576593]
[1753087686280,0.06,190.4,190.38,0.66]
[1753087686487,0.06,190.4,190.36,0.66]
[1753087686665,0.06,190.4,190.37,9.39311335]
[1753087687055,8.73311335,190.38,190.34,5.25371418]
[1753087687256,9.41311335,190.37,190.31,8.73311335]
[1753087687471,8.73311335,190.36,190.3,14.64782881]
[1753087687660,9.41311335,190.35,190.3,5.25471546]
[1753087687862,9.41311335,190.34,190.28,13.98852642]
[1753087688382,0.68,190.37,190.29,0.66]
[1753087688552,0.68,190.37,190.3,8.73311335]
[1753087689656,8.73311335,190.37,190.31,14.64769797]
[1753087689852,8.73311335,190.39,190.33,8.73311335]
[1753087690056,8.79311335,190.4,190.34,9.39311335]
[1753087691086,0.06,190.4,190.35,8.73311335]
[1753087691285,0.06,190.4,190.36,0.66]
[1753087691459,0.06,190.4,190.36,9.39311335]
[1753087691665,0.06,190.4,190.37,14.64604185]
[1753087691984,0.06,190.4,190.37,0.66]
[1753087692290,0.06,190.4,190.36,5.25314278]
[1753087692481,0.06,190.4,190.36,5.91314278]
[1753087694079,0.06,190.4,190.36,5.25314278]
[1753087694298,0.06,190.4,190.36,5.97314278]
[1753087694868,0.72,190.4,190.36,5.25314278]
[1753087696690,0.66,190.39,190.34,13.98686978]
[1753087696986,0.66,190.39,190.34,14.70686978]
[1753087697326,8.79311335,190.4,190.34,13.98686978]
[1753087697487,8.79311335,190.4,190.35,0.72]
[1753087697663,9.45311335,190.4,190.35,5.97331014]
[1753087699588,8.79311335,190.4,190.36,0.72]
[1753087701492,0.06,190.4,190.36,0.72]
[1753087701662,0.06,190.4,190.36,5.97311587]
[1753087702598,8.79311335,190.4,190.36,5.97311587]
[1753087703589,8.79311335,190.4,190.35,13.98656994]
[1753087703888,9.45311335,190.4,190.35,5.25345659]
[1753087704190,0.06,190.4,190.36,9.45311335]
[1753087704396,0.06,190.4,190.37,0.72]
[1753087704569,0.06,190.4,190.38,0.72]
[1753087705686,0.06,190.4,190.38,5.97257891]
[1753087706072,0.06,190.4,190.35,8.73311335]
[1753087706388,0.06,190.4,190.36,0.72]
[1753087707094,0.06,190.4,190.38,8.73311335]
[1753087707275,0.06,190.4,190.39,5.95671105]
[1753087707475,0.06,190.4,190.39,6.67671105]
[1753087707680,0.06,190.4,190.39,0.72]
[1753087708091,0.06,190.4,190.38,5.25240564]
[1753087708393,0.06,190.4,190.38,0.72]
[1753087709393,0.06,190.4,190.37,5.25282871]
[1753087709569,0.06,190.4,190.34,6.5146]
[1753087709781,5.95671105,190.38,190.33,5.97403246]
[1753087709980,5.95671105,190.38,190.34,0.72]
[1753087710178,5.31213347,190.4,190.3,5.95671105]
[1753087710179,5.95671105,190.36,190.3,5.95671105]
[1753087710384,5.95671105,190.36,190.31,0.72]
[1753087710586,5.95671105,190.36,190.32,0.72]
[1753087710797,5.95671105,190.36,190.29,5.95671105]
[1753087711106,5.95671105,190.36,190.27,14.68264223]
[1753087711107,11.86999939,190.36,190.3,5.97480526]
[1753087711400,5.95671105,190.34,190.3,0.72]
[1753087711782,5.95671105,190.34,190.31,0.72]
[1753087711977,5.91328834,190.36,190.28,5.97541307]
[1753087712288,5.95671105,190.33,190.28,5.97541307]
[1753087712492,0.66,190.36,190.29,6.67671105]
[1753087712674,5.95671105,190.35,190.3,0.72]
[1753087712880,5.95671105,190.35,190.31,0.72]
[1753087713288,8.74443318,190.35,190.31,0.72]
[1753087713610,0.66,190.36,190.31,0.72]
[1753087713800,5.25293882,190.37,190.32,0.72]
[1753087713983,8.74443318,190.37,190.32,0.72]
[1753087714184,5.25239052,190.39,190.3,0.72]
[1753087714401,0.66,190.38,190.3,5.97460912]
[1753087714802,0.66,190.38,190.31,0.72]
[1753087715305,0.06,190.4,190.35,8.74443318]
[1753087715509,0.06,190.4,190.36,0.72]
[1753087716003,0.06,190.4,190.37,9.46443318]
[1753087716387,0.06,190.4,190.38,0.72]
[1753087716793,0.06,190.4,190.39,0.72]
[1753087718398,0.06,190.4,190.39,5.9723767]
[1753087719718,0.06,190.4,190.39,0.72]
[1753087720398,0.06,190.4,190.39,5.9723767]
[1753087720599,0.06,190.4,190.39,14.71680988]
[1753087721485,1e-08,190.4,190.39,14.71680988]
[1753087721703,1e-08,190.4,190.39,0.72]
[1753087722205,1e-08,190.4,190.39,9.46443318]
[1753087722393,1e-08,190.4,190.39,14.71680988]
[1753087723907,1e-08,190.4,190.39,5.9723767]
[1753087724488,1e-08,190.4,190.39,0.67]
[1753087725012,9.41443319,190.4,190.36,5.25311595]
[1753087725193,8.74443318,190.37,190.31,5.25458462]
[1753087725398,8.74443318,190.35,190.31,5.25458462]
[1753087725610,8.74443318,190.35,190.31,5.92458462]
[1753087726288,0.67,190.39,190.32,0.67]
[1753087726482,8.74443318,190.39,190.33,8.74443318]
[1753087726710,8.74443318,190.39,190.33,9.41443318]
[1753087726914,8.74443318,190.38,190.33,0.67]
[1753087727418,1e-08,190.4,190.34,9.41443318]
[1753087727616,1e-08,190.4,190.35,9.41443318]
[1753087727915,1e-08,190.4,190.36,8.74443318]
[1753087728110,1e-08,190.4,190.36,9.41443318]
[1753087728415,1e-08,190.4,190.38,5.25265258]
[1753087728797,1e-08,190.4,190.39,0.67]
[1753087729108,1e-08,190.4,190.39,9.41443318]
[1753087730413,1e-08,190.4,190.39,14.66680988]
[1753087732911,9.41443319,190.4,190.33,0.67]
[1753087733099,0.67000001,190.4,190.34,26.0]
[1753087733303,8.74443318,190.39,190.34,26.0]
[1753087733613,0.67000001,190.4,190.33,5.25403246]
[1753087733614,9.41443318,190.38,190.33,5.25403246]
[1753087733995,0.67,190.38,190.33,5.92403246]
[1753087735417,8.74443318,190.39,190.33,5.25403246]
[1753087735595,8.74443318,190.39,190.34,0.67]
[1753087735921,8.74443318,190.39,190.35,0.67]
[1753087736521,8.74443318,190.39,190.36,5.25320445]
[1753087736713,8.74443319,190.4,190.36,5.25320445]
[1753087737017,1e-08,190.4,190.36,5.25320445]
[1753087737320,9.41443319,190.4,190.36,5.25320445]
[1753087739113,9.41443319,190.4,190.35,5.25348043]
[1753087739298,8.74443318,190.39,190.35,5.25348043]
[1753087739719,0.67,190.38,190.35,5.25348043]
[1753087740310,8.74443318,190.39,190.35,5.25348043]
[1753087741222,9.41443318,190.39,190.34,5.25375643]
[1753087741408,1e-08,190.4,190.34,5.25375643]
[1753087741409,8.74443318,190.37,190.34,5.25375643]
[1753087741607,8.74443318,190.36,190.31,5.25458462]
[1753087741912,8.74443318,190.32,190.29,5.25488825]
[1753087742116,9.41443318,190.32,190.29,5.25488825]
[1753087742313,0.67,190.35,190.29,5.92488825]
[1753087742517,2.2974,190.38,190.3,9.41443318]
[1753087742706,8.74443318,190.37,190.31,8.74443318]
[1753087742904,8.74443318,190.36,190.3,9.41443318]
[1753087743101,8.74443318,190.33,190.28,5.25541307]
[1753087743316,9.41443318,190.33,190.28,5.25541307]
[1753087743611,1.6274,190.38,190.29,0.67]
[1753087743612,8.74443318,190.34,190.29,0.67]
[1753087743795,8.74443318,190.3,190.24,0.67]
[1753087744002,8.74443318,190.3,190.22,13.14226858]
[1753087744003,8.74443318,190.28,190.22,22.55670176]
[1753087744417,8.74443318,190.28,190.23,5.2567944]
[1753087744602,18.38528517,190.37,190.23,5.2567944]
[1753087744603,9.41443318,190.27,190.23,5.2567944]
[1753087744796,0.67,190.27,190.25,0.03]
[1753087745030,8.74443318,190.28,190.25,0.03]
[1753087745247,8.74443318,190.26,190.25,0.03]
[1753087745926,0.67,190.28,190.25,0.03]
[1753087746224,8.74443318,190.26,190.25,0.03]
[1753087746419,0.67,190.27,190.25,0.03]
[1753087746622,9.41443318,190.26,190.25,0.03]
[1753087748129,8.74443318,190.26,190.25,0.03]
[1753087748618,8.74443318,190.27,190.25,0.03]
[1753087748828,8.74443318,190.26,190.25,0.03]
[1753087749141,0.67,190.29,190.25,0.03]
[1753087749299,8.74443318,190.27,190.25,0.03]
[1753087749935,0.67,190.29,190.25,0.03]
[1753087750129,40.1399,190.33,190.25,0.03]
[1753087750130,38.6,190.33,190.26,9.41443318]
[1753087750328,38.6,190.33,190.25,0.03]
[1753087750329,0.67,190.34,190.28,8.74443318]
[1753087750500,8.74443318,190.34,190.29,0.67]
[1753087750700,8.74443318,190.34,190.3,0.67]
[1753087750904,0.67,190.36,190.31,0.67]
[1753087751111,8.74443318,190.38,190.32,9.41443318]
[1753087751300,0.67,190.39,190.33,5.25403246]
[1753087751523,8.74443318,190.38,190.33,5.25403246]
[1753087751824,8.74443318,190.38,190.34,0.67]
[1753087752333,8.74443318,190.37,190.34,0.67]
[1753087752515,9.41443318,190.36,190.33,5.25403246]
[1753087752718,8.74443318,190.35,190.33,5.25403246]
[1753087753098,9.41443318,190.34,190.31,5.25453687]
[1753087753409,8.74443318,190.32,190.29,5.25513689]
[1753087754011,0.68,190.33,190.29,5.25513689]
[1753087754012,9.42443318,190.33,190.29,5.25513689]
[1753087754442,9.42443318,190.33,190.28,5.25541307]
[1753087754617,8.74443318,190.34,190.29,0.66]
[1753087754809,8.74443318,190.34,190.29,0.37370136]
[1753087755214,0.68,190.36,190.29,0.37370136]
[1753087755525,8.74443318,190.33,190.28,31.25541307]
[1753087755833,8.74443318,190.33,190.28,53.13837893]
[1753087756038,8.74443318,190.34,190.28,53.13837893]
[1753087756210,8.74443318,190.33,190.28,44.39394575]
[1753087756820,9.42443318,190.33,190.28,44.39394575]
[1753087757141,9.42443318,190.33,190.28,45.05394575]
[1753087757536,8.74443318,190.33,190.28,45.05394575]
[1753087758212,1e-08,190.4,190.28,31.25541307]
[1753087758213,9.42443318,190.32,190.28,31.25541307]
[1753087758726,8.74443318,190.29,190.26,5.25596552]
[1753087759740,0.68,190.31,190.25,18.42654032]
[1753087759936,8.74443318,190.29,190.25,18.42654032]
[1753087760446,9.42443318,190.28,190.25,5.28624178]
[1753087760739,8.74443318,190.28,190.25,5.28624178]
[1753087761646,8.74443318,190.29,190.25,0.03]
[1753087761854,8.74443318,190.29,190.25,0.69]
[1753087762714,0.68,190.35,190.26,31.91596552]
[1753087762913,8.74443318,190.33,190.27,9.40443318]
[1753087763114,8.74443318,190.33,190.27,8.74443318]
[1753087763332,8.74443318,190.33,190.28,0.66]
[1753087763639,26.0,190.39,190.26,5.91596552]
[1753087763640,8.74443318,190.31,190.26,5.91596552]
[1753087763811,8.74443318,190.31,190.27,0.66]
[1753087764016,8.74443318,190.31,190.26,5.25596552]
[1753087764235,9.42443318,190.31,190.26,5.25596552]
[1753087764435,8.74443318,190.31,190.26,5.25596552]
[1753087764737,8.74443318,190.36,190.31,5.25458462]
[1753087765127,8.74443318,190.36,190.31,5.91458462]
[1753087765532,9.42443318,190.36,190.31,5.25458462]
[1753087766232,9.42443318,190.35,190.31,5.25458462]
[1753087766431,0.68,190.35,190.31,5.25458462]
[1753087766860,0.68,190.35,190.3,18.39199813]
[1753087767137,8.74443318,190.37,190.31,0.66]
[1753087767340,0.06,190.36,190.31,0.66]
[1753087767534,9.42443318,190.35,190.3,5.25486074]
[1753087767723,0.06,190.36,190.31,0.66]
[1753087767724,8.80443318,190.36,190.31,0.66]
[1753087767924,8.80443318,190.36,190.32,0.66]
[1753087768131,8.80443318,190.36,190.3,18.3920126]
[1753087768132,0.06,190.36,190.3,18.3920126]
[1753087768325,0.06,190.36,190.33,0.66]
[1753087768821,0.06,190.36,190.35,5.25348043]
[1753087769230,0.06,190.36,190.35,5.91348043]
[1753087771530,0.06,190.36,190.35,5.25348043]
[1753087772920,0.06,190.36,190.34,13.99818961]
[1753087773125,0.74,190.36,190.34,5.25375643]
[1753087773333,0.06,190.36,190.34,5.25375643]
[1753087773741,9.42443318,190.35,190.32,5.25430853]
[1753087773945,8.80443318,190.36,190.32,5.25430853]
[1753087774252,9.48443318,190.36,190.32,5.25430853]
[1753087774450,8.74443318,190.35,190.32,5.25430853]
[1753087774946,9.42443318,190.35,190.31,5.25458462]
[1753087775654,0.68,190.35,190.31,5.25458462]
[1753087777049,0.68,190.34,190.31,5.25458462]
[1753087777351,0.68,190.33,190.31,5.25458462]
[1753087778051,8.74443318,190.34,190.31,5.25458462]
[1753087778356,9.42443318,190.34,190.31,5.25458462]
[1753087778931,9.42443318,190.34,190.3,5.25486074]
[1753087780142,0.68,190.33,190.3,5.25486074]
[1753087780543,8.74443318,190.34,190.3,5.25486074]
[1753087780858,8.80443318,190.36,190.31,0.66]
[1753087781160,6.70148157,190.36,190.32,5.25430853]
[1753087781343,6.02148157,190.36,190.32,5.25430853]
[1753087781535,6.02148157,190.36,190.33,0.66]
[1753087781861,6.02148157,190.36,190.32,5.25430853]
[1753087782063,6.02148157,190.36,190.32,5.91430853]
[1753087783259,0.06,190.36,190.32,5.91430853]
[1753087785462,0.06,190.36,190.34,5.25375643]
[1753087785961,0.06,190.36,190.34,5.92375643]
[1753087786341,0.06,190.36,190.35,0.67]
[1753087787861,0.06,190.36,190.35,11.884962]
[1753087790954,1e-08,190.4,190.35,25.01866307]
[1753087791166,1e-08,190.4,190.38,5.96148157]
[1753087791368,1e-08,190.4,190.39,5.2523767]
[1753087791575,1e-08,190.4,190.39,5.9223767]
[1753087792449,1e-08,190.4,190.39,11.88385827]
[1753087792850,1e-08,190.4,190.39,5.2523767]
[1753087793068,0.68000001,190.4,190.37,38.48]
[1753087793271,1e-08,190.4,190.37,45.11148157]
[1753087794074,1e-08,190.4,190.37,50.36441007]
[1753087795176,22.74616554,190.38,190.3,5.25486074]
[1753087795363,16.78468397,190.36,190.31,5.96148157]
[1753087795564,16.78468397,190.36,190.31,44.44148157]
[1753087795879,16.78468397,190.36,190.32,0.67]
[1753087796251,23.42616554,190.36,190.32,5.25411719]
[1753087796452,22.74616554,190.36,190.32,5.25411719]
[1753087796671,0.68,190.35,190.32,5.25411719]
[1753087797778,5.96148157,190.36,190.32,5.25411719]
[1753087797975,6.64148157,190.37,190.32,5.92411719]
[1753087798677,0.68,190.37,190.32,5.92411719]
[1753087798882,6.64148157,190.37,190.32,5.92411719]
[1753087799085,6.64148157,190.37,190.32,5.25411719]
[1753087799377,16.78468397,190.37,190.33,0.67]
[1753087799778,5.96148157,190.38,190.34,5.25375643]
[1753087799982,6.64148157,190.38,190.34,5.25375643]
[1753087800157,22.74616554,190.37,190.34,5.25375643]
[1753087800363,23.42616554,190.37,190.34,5.25375643]
[1753087800681,1e-08,190.4,190.36,5.96148157]
[1753087800882,1e-08,190.4,190.38,5.96148157]
[1753087801459,1e-08,190.4,190.39,0.67]
[1753087801674,1e-08,190.4,190.39,45.09148157]
[1753087801966,1e-08,190.4,190.39,50.34385827]
[1753087802285,0.06,190.44,190.39,63.47480002]
[1753087802455,0.06,190.44,190.43,5.96148157]
[1753087802661,0.06,190.44,190.43,44.42148157]
[1753087802863,0.06,190.48,190.46,26.0]
[1753087803066,1e-08,190.48,190.47,44.42148157]
[1753087803271,1e-08,190.48,190.47,47.85338906]
[1753087803868,1e-08,190.48,190.47,53.10355969]
[1753087804790,8.72338906,190.57,190.54,10.0]
[1753087804970,8.72338906,190.57,190.55,38.44]
[1753087805172,3.25221998,190.64,190.54,10.0]
[1753087805487,8.72338906,190.55,190.54,10.0]
[1753087805692,10.4853554,190.63,190.54,10.0]
[1753087806076,8.72338906,190.57,190.54,10.0]
[1753087806587,8.72338906,190.55,190.52,10.0]
[1753087806881,0.68,190.54,190.53,38.44]
[1753087807759,0.68,190.54,190.53,48.44]
[1753087807982,8.72338906,190.55,190.53,48.44]
[1753087808185,9.40338906,190.55,190.53,48.44]
[1753087808382,0.68,190.54,190.51,10.0]
[1753087808683,0.68,190.54,190.52,38.42]
[1753087809486,0.68,190.54,190.51,10.0]
[1753087809487,0.68,190.54,190.53,38.42]
[1753087809864,0.68,190.54,190.51,10.0]
[1753087810059,0.68,190.54,190.53,10.0]
[1753087810265,0.68,190.54,190.53,48.42]
[1753087810469,14.65163089,190.54,190.5,10.0]
[1753087810656,8.72338906,190.51,190.48,38.42]
[1753087810861,8.72338906,190.52,190.49,10.0]
[1753087811085,9.40338906,190.52,190.49,10.0]